[Event "European Womens-ch 2025"]
[Site "Rhodes"]
[Date "2025.04.02"]
[Round "3.32"]
[White "Deak-Sala, Emilia"]
[Black "Zawadzka, Jolanta"]
[Result "1/2-1/2"]
[Annotator "RC"]
[ECO "A38"]
[WhiteElo "2112"]
[BlackElo "2326"]
[PlyCount "114"]
[EventDate "2025.03.29"]
[EventType "swiss"]
[EventCountry "GRE"]
[SourceTitle "playchess.com"]
[Source "ChessBase"]
[SourceQuality "1"]
[TimeControl "40/5400+30:1800+30"]

1. Nf3 {[%emt 0:04:17]} Nf6 {[%emt 0:00:10]} 2. g3 {[%emt 0:00:16]} g6 {[%emt 0:00:07]} 3. b3 {[%emt 0:00:14]} Bg7 {[%emt 0:00:27]} 4. Bb2 {[%emt 0:00:05]} O-O {[%emt 0:01:36]} 5. Bg2 {[%emt 0:00:06]} c5 {[%emt 0:00:11]} 6. c4 {[%emt 0:00:06]} d6 {[%emt 0:01:13]} 7. O-O {[%emt 0:00:13]} e5 {[%emt 0:00:12]} 8. Nc3 {[%emt 0:06:30]} Nc6 {[%emt 0:01:02]} 9. d3 {[%emt 0:06:25]} h6 {[%emt 0:00:41]} 10. e4 {[%emt 0:08:22]} Be6 {[%emt 0:01:35]} 11. h3 {[%emt 0:06:35]} Nh7 {[%emt 0:03:45]} 12. Nd5 {[%emt 0:04:23]} Qd7 {[%emt 0:13:03]} 13. Kh2 {[%emt 0:01:09]} f5 {[%emt 0:00:11]} 14. Nh4 {[%emt 0:13:31]} Qf7 {[%emt 0:02:16]} 15. exf5 {[%emt 0:03:44]} gxf5 {[%emt 0:01:53]} 16. Rb1 {[%emt 0:02:55]} Nf6 {[%emt 0:04:05]} 17. Nxf6+ {[%emt 0:09:20]} Bxf6 {[%emt 0:00:07]} 18. f4 {[%emt 0:00:35]} Bxh4 {[%emt 0:26:35]} 19. gxh4 {[%emt 0:00:04]} Nd4 {[%emt 0:00:20]} 20. b4 {[%emt 0:09:49]} Qf6 {[%emt 0:06:36]} 21. bxc5 {[%emt 0:02:12]} dxc5 {[%emt 0:00:08]} 22. Bxd4 {[%emt 0:00:41]} cxd4 {[%emt 0:00:52]} 23. Qe1 {[%emt 0:04:23]} exf4 {[%emt 0:02:06]} 24. Rxf4 {[%emt 0:00:19]} Rae8 {[%emt 0:00:30]} 25. Rxb7 {[%emt 0:00:30]} Bc8 {[%emt 0:01:38]} 26. Qg3+ {[%emt 0:04:01]} Kh8 {[%emt 0:00:04]} 27. Rb2 {[%emt 0:00:19]} Re3 {[%emt 0:00:52]} 28. Qf2 {[%emt 0:02:24]} Rfe8 {[%emt 0:04:20]} 29. h5 {[%emt 0:06:13]} Bd7 {[%emt 0:01:56]} 30. Rf3 {[%emt 0:02:48]} f4 {[%emt 0:12:10]} 31. Rxf4 {[%emt 0:00:37]} Qe5 {[%emt 0:01:24]} 32. Qh4 {[%emt 0:00:41]} Rf8 {[%emt 0:03:10]} 33. Rbf2 {[%emt 0:00:02]} Rxd3 {[%emt 0:00:24]} 34. Kh1 {[%emt 0:02:01]} Rd1+ {[%emt 0:00:14]} 35. Kh2 {[%emt 0:00:13]} Rd3 {[%emt 0:03:10]} 36. Kh1 {[%emt 0:00:12]} Rd1+ {[%emt 0:03:29]} 37. Kh2 {[%emt 0:00:04]} Be6 {[%emt 0:00:18]} 38. Qg3 {[%emt 0:00:43]} Rg8 {[%emt 0:00:08]} 39. Qf3 {[%emt 0:01:19]} Re1 {[%emt 0:00:06]} 40. Qd3 {[%emt 0:00:00]} Rc1 {[%emt 0:00:00]} 41. Qxd4 {[%emt 0:01:32]} Qxd4 {[%emt 0:04:59]} 42. Rxd4 {[%emt 0:00:03]} Kg7 {[%emt 0:09:10]} 43. Rd6 {[%emt 0:10:48]} Re1 {[%emt 0:00:30]} 44. Rxe6 {[%emt 0:00:30]} Rxe6 {[%emt 0:00:30]} 45. Bd5 {[%emt 0:00:30]} Rge8 {[%emt 0:00:30]} 46. Bxe6 {[%emt 0:00:30]} Rxe6 {[%emt 0:00:30]} 47. Rc2 {[%emt 0:00:30]} Kf6 {[%emt 0:00:30]} 48. Kg3 {[%emt 0:00:30]} Re5 {[%emt 0:00:30]} 49. c5 {[%emt 0:00:30]} Ke7 {[%emt 0:00:30]} 50. c6 {[%emt 0:00:30]} Kd8 {[%emt 0:00:30]} 51. c7+ {[%emt 0:00:30]} Kc8 {[%emt 0:00:30]} 52. Rc6 {[%emt 0:00:30]} Rxh5 {[%emt 0:00:30]} 53. h4 {[%emt 0:00:30]} Ra5 {[%emt 0:00:30]} 54. Rc2 {[%emt 0:00:30]} Ra4 {[%emt 0:00:30]} 55. Kh3 {[%emt 0:00:30]} h5 {[%emt 0:00:30]} 56. Kg3 {[%emt 0:00:30]} Rg4+ {[%emt 0:14:49]} 57. Kh3 {[%emt 0:10:57]} Ra4 {[%emt 0:00:04]} 1/2-1/2

[Event "European Womens-ch 2025"]
[Site "Rhodes"]
[Date "2025.04.02"]
[Round "3.33"]
[White "Zagorac, Lara"]
[Black "Zhukova, Natalia"]
[Result "0-1"]
[Annotator "RC"]
[ECO "D02"]
[WhiteElo "2106"]
[BlackElo "2306"]
[PlyCount "190"]
[EventDate "2025.03.29"]
[EventType "swiss"]
[EventCountry "GRE"]
[SourceTitle "playchess.com"]
[Source "ChessBase"]
[SourceQuality "1"]
[TimeControl "40/5400+30:1800+30"]

1. d4 {[%emt 0:00:03]} Nf6 {[%emt 0:00:08]} 2. Nf3 {[%emt 0:00:09]} e6 {[%emt 0:00:26]} 3. Bf4 {[%emt 0:00:29]} c5 {[%emt 0:00:52]} 4. e3 {[%emt 0:00:35]} Nc6 {[%emt 0:01:16]} 5. c3 {[%emt 0:01:26]} d5 {[%emt 0:00:25]} 6. Nbd2 {[%emt 0:00:13]} cxd4 {[%emt 0:00:31]} 7. exd4 {[%emt 0:02:17]} Nh5 {[%emt 0:00:10]} 8. Be3 {[%emt 0:03:38]} Bd6 {[%emt 0:00:40]} 9. Ne5 {[%emt 0:10:54]} Nf6 {[%emt 0:00:35]} 10. f4 {[%emt 0:08:16]} Qb6 {[%emt 0:00:37]} 11. Qb3 {[%emt 0:04:02]} Ng8 {[%emt 0:00:25]} 12. Qxb6 {[%emt 0:05:12]} axb6 {[%emt 0:00:34]} 13. Bd3 {[%emt 0:02:32]} f6 {[%emt 0:02:31]} 14. Nef3 {[%emt 0:02:59]} Nh6 {[%emt 0:01:06]} 15. h3 {[%emt 0:04:29]} Nf5 16. Bxf5 {[%emt 0:06:46]} exf5 {[%emt 1:28:14]} 17. Kf2 {[%emt 0:02:00]} Kf7 {[%emt 0:00:00]} 18. Ne1 {[%emt 0:10:19]} Bd7 {[%emt 0:00:00]} 19. Nd3 Ne7 {[%emt 0:00:00]} 20. Nf3 {[%emt 0:08:00]} Nc8 {[%emt 0:00:00]} 21. a3 {[%emt 0:03:01]} Be7 {[%emt 0:00:00]} 22. Rhe1 {[%emt 0:00:30]} Nd6 {[%emt 0:00:00]} 23. Nd2 {[%emt 0:03:31]} h6 {[%emt 0:00:00]} 24. Nb4 {[%emt 0:01:56]} Be6 {[%emt 0:00:00]} 25. g3 {[%emt 0:03:00]} Ke8 {[%emt 0:00:00]} 26. h4 {[%emt 0:02:06]} Kd7 {[%emt 0:00:00]} 27. h5 Bf7 {[%emt 0:00:00]} 28. Rh1 {[%emt 0:02:36]} Nc4 {[%emt 0:00:00]} 29. Nxc4 {[%emt 0:01:30]} dxc4 {[%emt 0:06:30]} 30. Nc2 {[%emt 0:02:03]} Bd5 {[%emt 0:00:00]} 31. Rhg1 {[%emt 0:02:03]} Be4 {[%emt 0:00:00]} 32. Ne1 {[%emt 0:00:21]} Ra5 {[%emt 0:00:00]} 33. Rd1 {[%emt 0:02:41]} Re8 {[%emt 0:00:00]} 34. Nf3 {[%emt 0:01:06]} Bf8 {[%emt 0:00:00]} 35. Bc1 {[%emt 0:01:22]} Bd5 {[%emt 0:00:00]} 36. Rde1 {[%emt 0:00:56]} Raa8 {[%emt 0:00:00]} 37. Nd2 {[%emt 0:01:37]} Bf7 {[%emt 0:00:00]} 38. Rh1 {[%emt 0:00:38]} Rxe1 {[%emt 0:00:00]} 39. Kxe1 {[%emt 0:00:06]} Kc6 {[%emt 0:00:15]} 40. Nf1 {[%emt 0:00:00]} Bd5 {[%emt 0:00:00]} 41. Rh2 {[%emt 0:05:38]} b5 {[%emt 0:03:42]} 42. Ne3 {[%emt 0:04:26]} Be4 {[%emt 0:00:49]} 43. Kd2 {[%emt 0:03:02]} Bd6 {[%emt 0:05:41]} 44. Ke1 {[%emt 0:03:25]} Kd7 {[%emt 0:01:52]} 45. Ke2 {[%emt 0:01:27]} Bd3+ {[%emt 0:00:38]} 46. Kd2 {[%emt 0:00:34]} Be4 {[%emt 0:05:16]} 47. Ke2 {[%emt 0:00:55]} Re8 {[%emt 0:00:46]} 48. Ke1 {[%emt 0:01:38]} Kc6 {[%emt 0:02:23]} 49. Kd1 {[%emt 0:02:13]} Kb6 {[%emt 0:00:36]} 50. Bd2 {[%emt 0:01:12]} Ka5 {[%emt 0:00:57]} 51. Bc1 {[%emt 0:04:47]} Bd3 {[%emt 0:04:00]} 52. Kd2 {[%emt 0:01:40]} Be4 {[%emt 0:02:01]} 53. Kd1 {[%emt 0:01:02]} Ka4 {[%emt 0:02:30]} 54. Bd2 {[%emt 0:02:21]} Kb3 {[%emt 0:00:32]} 55. Bc1 {[%emt 0:00:55]} Bd3 {[%emt 0:02:07]} 56. Kd2 {[%emt 0:00:51]} Rg8 {[%emt 0:04:21]} 57. Ke1 {[%emt 0:01:39]} g6 {[%emt 0:01:10]} 58. hxg6 {[%emt 0:00:19]} Rxg6 {[%emt 0:00:02]} 59. Rh3 {[%emt 0:00:13]} Ka2 {[%emt 0:00:30]} 60. Kf2 {[%emt 0:05:52]} Be4 {[%emt 0:00:03]} 61. Ng2 {[%emt 0:00:52]} Kb1 {[%emt 0:01:39]} 62. Rh1 {[%emt 0:00:16]} h5 {[%emt 0:00:18]} 63. Bd2+ {[%emt 0:00:47]} Kxb2 {[%emt 0:00:49]} 64. Rxh5 {[%emt 0:00:05]} Kc2 {[%emt 0:03:19]} 65. Be1 {[%emt 0:00:22]} Bxg2 {[%emt 0:00:19]} 66. Kxg2 {[%emt 0:00:06]} Bxa3 67. Rxf5 {[%emt 0:00:05]} Bb2 {[%emt 0:01:25]} 68. Rxb5 {[%emt 0:00:25]} Bxc3 {[%emt 0:00:01]} 69. Bxc3 {[%emt 0:01:45]} Kxc3 {[%emt 0:00:02]} 70. Rxb7 {[%emt 0:00:23]} Kd2 {[%emt 0:01:19]} 71. Rc7 {[%emt 0:00:44]} c3 {[%emt 0:00:01]} 72. Rc6 {[%emt 0:00:37]} c2 {[%emt 0:00:03]} 73. Kf3 {[%emt 0:00:18]} f5 {[%emt 0:00:28]} 74. Rxg6 {[%emt 0:00:34]} c1=Q {[%emt 0:00:06]} 75. Kg2 {[%emt 0:00:29]} Qc4 {[%emt 0:00:43]} 76. Kh3 {[%emt 0:00:36]} Qf7 {[%emt 0:01:37]} 77. Rb6 {[%emt 0:00:33]} Ke3 {[%emt 0:00:09]} 78. Kh4 {[%emt 0:00:26]} Kf3 {[%emt 0:02:01]} 79. Kg5 {[%emt 0:01:06]} Ke4 {[%emt 0:00:00]} 80. Rf6 {[%emt 0:00:00]} Qg8+ {[%emt 0:00:15]} 81. Rg6 {[%emt 0:01:00]} Qb3 {[%emt 0:00:11]} 82. Kf6 {[%emt 0:00:00]} Qd5 {[%emt 0:00:50]} 83. Rg5 {[%emt 0:00:18]} Qd7 {[%emt 0:00:25]} 84. Kg6 {[%emt 0:00:38]} Qd6+ {[%emt 0:00:21]} 85. Kh5 {[%emt 0:00:30]} Qxd4 {[%emt 0:00:20]} 86. Kg6 {[%emt 0:00:14]} Qh8 {[%emt 0:00:23]} 87. Kf7 {[%emt 0:00:46]} Qc8 {[%emt 0:00:50]} 88. Kg6 {[%emt 0:00:23]} Qf8 {[%emt 0:00:13]} 89. Kh5 {[%emt 0:00:33]} Qf7+ {[%emt 0:00:32]} 90. Kh4 {[%emt 0:00:36]} Kf3 {[%emt 0:00:21]} 91. g4 {[%emt 0:00:30]} fxg4 {[%emt 0:00:42]} 92. f5 {[%emt 0:00:25]} Qh7+ {[%emt 0:00:58]} 93. Rh5 {[%emt 0:00:26]} Qe7+ {[%emt 0:00:05]} 94. Rg5 {[%emt 0:00:28]} Kf4 {[%emt 0:00:13]} 95. f6 {[%emt 0:00:26]} Qxf6 {[%emt 0:00:12]} 0-1

[Event "European Womens-ch 2025"]
[Site "Rhodes"]
[Date "2025.04.02"]
[Round "3.34"]
[White "Vidic, Teja"]
[Black "Kochavi, Dana"]
[Result "0-1"]
[Annotator "RC"]
[ECO "B31"]
[WhiteElo "2100"]
[BlackElo "2301"]
[PlyCount "62"]
[EventDate "2025.03.29"]
[EventType "swiss"]
[EventCountry "GRE"]
[SourceTitle "playchess.com"]
[Source "ChessBase"]
[SourceQuality "1"]
[TimeControl "40/5400+30:1800+30"]

1. e4 {[%emt 0:00:02]} c5 {[%emt 0:00:03]} 2. Nf3 {[%emt 0:00:05]} Nc6 {[%emt 0:00:04]} 3. Bb5 {[%emt 0:00:08]} g6 {[%emt 0:00:04]} 4. Bxc6 {[%emt 0:00:07]} bxc6 {[%emt 0:00:03]} 5. O-O {[%emt 0:00:10]} Bg7 {[%emt 0:00:01]} 6. Re1 {[%emt 0:00:08]} Nh6 {[%emt 0:00:04]} 7. c3 {[%emt 0:01:32]} O-O {[%emt 0:00:14]} 8. h3 {[%emt 0:00:15]} f5 {[%emt 0:00:04]} 9. e5 {[%emt 0:01:35]} Nf7 {[%emt 0:00:04]} 10. d4 {[%emt 0:01:18]} cxd4 {[%emt 0:00:05]} 11. cxd4 {[%emt 0:00:04]} c5 {[%emt 0:00:15]} 12. Be3 {[%emt 0:10:53]} Bb7 {[%emt 0:00:28]} 13. Nbd2 {[%emt 0:01:03]} cxd4 {[%emt 0:28:15]} 14. Bxd4 {[%emt 0:01:08]} Bd5 {[%emt 0:00:56]} 15. Nb3 {[%emt 0:10:18]} g5 {[%emt 0:08:32]} 16. Nc5 {[%emt 0:14:32]} e6 {[%emt 0:05:14]} 17. Nh2 {[%emt 0:05:42]} Nh8 {[%emt 0:04:01]} 18. Nf1 {[%emt 0:06:56]} Ng6 {[%emt 0:02:33]} 19. Nd3 {[%emt 0:08:47]} Nh4 {[%emt 0:12:27]} 20. Ne3 {[%emt 0:04:48]} Bc6 {[%emt 0:00:14]} 21. Rc1 {[%emt 0:00:30]} f4 {[%emt 0:04:29]} 22. Rxc6 {[%emt 0:00:13]} dxc6 {[%emt 0:00:14]} 23. Nc2 {[%emt 0:00:12]} a5 {[%emt 0:06:56]} 24. Re4 {[%emt 0:17:37]} Qd5 {[%emt 0:03:15]} 25. Qe1 {[%emt 0:00:07]} c5 {[%emt 0:03:37]} 26. Nxc5 {[%emt 0:01:04]} Rfc8 {[%emt 0:02:06]} 27. b4 {[%emt 0:02:40]} Qxa2 {[%emt 0:00:05]} 28. Na1 {[%emt 0:04:08]} Qd5 {[%emt 0:01:54]} 29. Nab3 {[%emt 0:01:22]} axb4 {[%emt 0:00:49]} 30. Qxb4 {[%emt 0:01:11]} Rab8 {[%emt 0:00:12]} 31. Qe1 {[%emt 0:00:47]} Rxb3 {[%emt 0:00:19]} 0-1

[Event "European Womens-ch 2025"]
[Site "Rhodes"]
[Date "2025.04.02"]
[Round "3.35"]
[White "Sivanandan, Bodhana"]
[Black "Smietanska, Wiktoria"]
[Result "1/2-1/2"]
[Annotator "RC"]
[ECO "B11"]
[WhiteElo "2073"]
[BlackElo "2254"]
[PlyCount "101"]
[EventDate "2025.03.29"]
[EventType "swiss"]
[EventCountry "GRE"]
[SourceTitle "playchess.com"]
[Source "ChessBase"]
[SourceQuality "1"]
[TimeControl "40/5400+30:1800+30"]

1. e4 {[%emt 0:04:28]} c6 {[%emt 0:00:08]} 2. Nc3 {[%emt 0:00:16]} d5 {[%emt 0:00:03]} 3. Nf3 {[%emt 0:00:11]} Bg4 {[%emt 0:00:05]} 4. h3 {[%emt 0:00:28]} Bxf3 {[%emt 0:00:13]} 5. Qxf3 {[%emt 0:00:12]} Nf6 {[%emt 0:00:13]} 6. Be2 {[%emt 0:00:51]} e6 {[%emt 0:00:08]} 7. O-O {[%emt 0:00:55]} d4 {[%emt 0:00:05]} 8. Nb1 {[%emt 0:00:29]} Nbd7 {[%emt 0:00:25]} 9. d3 {[%emt 0:00:36]} Bd6 {[%emt 0:00:09]} 10. Bf4 {[%emt 0:00:55]} e5 {[%emt 0:08:39]} 11. Bd2 {[%emt 0:06:07]} h5 {[%emt 0:05:42]} 12. c3 {[%emt 0:03:22]} Qb6 {[%emt 0:13:49]} 13. b3 {[%emt 0:02:19]} Qc7 {[%emt 0:08:29]} 14. h4 {[%emt 0:11:44]} O-O-O {[%emt 0:20:41]} 15. Qg3 {[%emt 0:04:50]} g6 {[%emt 0:03:24]} 16. f4 {[%emt 0:06:50]} dxc3 {[%emt 0:07:48]} 17. Nxc3 {[%emt 0:00:57]} Ng4 {[%emt 0:01:59]} 18. Rac1 {[%emt 0:11:08]} exf4 {[%emt 0:09:39]} 19. Bxf4 {[%emt 0:00:55]} Bxf4 {[%emt 0:01:27]} 20. Qxf4 {[%emt 0:01:04]} Qxf4 {[%emt 0:06:20]} 21. Rxf4 {[%emt 0:00:15]} Nde5 {[%emt 0:00:11]} 22. Rd1 {[%emt 0:03:57]} Rd4 {[%emt 0:02:07]} 23. Bxg4+ {[%emt 0:04:49]} hxg4 {[%emt 0:01:16]} 24. Ne2 {[%emt 0:02:45]} Rxd3 {[%emt 0:02:59]} 25. Rxd3 {[%emt 0:00:10]} Nxd3 {[%emt 0:00:05]} 26. Rxf7 {[%emt 0:04:26]} Rxh4 {[%emt 0:01:09]} 27. Rg7 {[%emt 0:01:26]} Nc5 {[%emt 0:01:43]} 28. Rxg6 {[%emt 0:00:53]} Nxe4 {[%emt 0:01:59]} 29. g3 {[%emt 0:00:47]} Rh5 {[%emt 0:00:23]} 30. Rxg4 {[%emt 0:00:44]} Re5 {[%emt 0:00:14]} 31. Kf1 {[%emt 0:06:21]} c5 {[%emt 0:01:45]} 32. Nf4 {[%emt 0:02:30]} Nc3 {[%emt 0:01:31]} 33. a4 {[%emt 0:01:06]} Nb1 {[%emt 0:01:13]} 34. Nd3 {[%emt 0:07:36]} Nd2+ {[%emt 0:00:11]} 35. Kg1 {[%emt 0:02:24]} Rf5 {[%emt 0:00:30]} 36. Rg8+ {[%emt 0:02:12]} Kc7 {[%emt 0:00:03]} 37. g4 {[%emt 0:00:17]} Rd5 {[%emt 0:00:17]} 38. Nc1 {[%emt 0:01:05]} c4 {[%emt 0:01:33]} 39. bxc4 {[%emt 0:00:41]} Nxc4 {[%emt 0:00:46]} 40. Kf2 {[%emt 0:00:00]} Nb2 {[%emt 0:00:00]} 41. g5 {[%emt 0:08:09]} Nxa4 {[%emt 0:04:58]} 42. g6 {[%emt 0:00:25]} Nc5 {[%emt 0:01:38]} 43. Ne2 {[%emt 0:00:45]} Ne6 {[%emt 0:02:29]} 44. Re8 {[%emt 0:00:24]} Kd7 {[%emt 0:01:58]} 45. Rxe6 {[%emt 0:00:29]} Kxe6 {[%emt 0:02:54]} 46. Nf4+ {[%emt 0:00:08]} Kf6 {[%emt 0:00:06]} 47. Nxd5+ {[%emt 0:00:06]} Kxg6 {[%emt 0:00:07]} 48. Ke3 {[%emt 0:00:38]} Kf5 {[%emt 0:00:15]} 49. Kd4 {[%emt 0:00:25]} Ke6 {[%emt 0:00:10]} 50. Kc5 {[%emt 0:00:32]} a5 {[%emt 0:00:40]} 51. Nb6 {[%emt 0:00:08]} 1/2-1/2

[Event "European Womens-ch 2025"]
[Site "Rhodes"]
[Date "2025.04.02"]
[Round "3.36"]
[White "Grapsa, Georgia"]
[Black "Schneider, Jana"]
[Result "0-1"]
[Annotator "RC"]
[ECO "E01"]
[WhiteElo "2065"]
[BlackElo "2251"]
[PlyCount "49"]
[EventDate "2025.03.29"]
[EventType "swiss"]
[EventCountry "GRE"]
[SourceTitle "playchess.com"]
[Source "ChessBase"]
[SourceQuality "1"]
[TimeControl "40/5400+30:1800+30"]

1. d4 {[%emt 0:02:24]} d5 {[%emt 0:00:16]} 2. c4 {[%emt 0:00:15]} e6 {[%emt 0:00:09]} 3. Nf3 {[%emt 0:00:03]} Nf6 {[%emt 0:00:08]} 4. g3 {[%emt 0:00:02]} Bb4+ {[%emt 0:00:12]} 5. Bd2 {[%emt 0:00:04]} Bd6 {[%emt 0:00:08]} 6. Nc3 {[%emt 0:02:08]} O-O {[%emt 0:00:15]} 7. Qc2 {[%emt 0:02:24]} Be7 {[%emt 0:00:29]} 8. e4 {[%emt 0:02:59]} c5 {[%emt 0:00:25]} 9. e5 {[%emt 0:05:37]} cxd4 {[%emt 0:00:21]} 10. Nxd4 {[%emt 0:02:11]} Ng4 {[%emt 0:00:18]} 11. Bf4 {[%emt 0:08:42]} f6 {[%emt 0:00:38]} 12. Nf3 {[%emt 0:13:33]} fxe5 {[%emt 0:24:35]} 13. Nxe5 {[%emt 0:00:12]} Nxe5 {[%emt 0:00:17]} 14. Bxe5 {[%emt 0:00:05]} Nc6 {[%emt 0:01:52]} 15. f4 {[%emt 0:05:23]} Nxe5 {[%emt 0:06:28]} 16. fxe5 {[%emt 0:00:25]} dxc4 {[%emt 0:00:13]} 17. Qd2 {[%emt 0:09:39]} Bd7 {[%emt 0:06:42]} 18. Bxc4 {[%emt 0:09:21]} Rc8 {[%emt 0:01:17]} 19. Bb3 {[%emt 0:04:20]} Rc5 {[%emt 0:01:11]} 20. Qe2 {[%emt 0:06:09]} Bb5 {[%emt 0:10:17]} 21. Nxb5 {[%emt 0:13:37]} Qa5+ {[%emt 0:00:29]} 22. Kd1 {[%emt 0:01:07]} Rd8+ {[%emt 0:01:23]} 23. Nd6 {[%emt 0:00:05]} Bxd6 {[%emt 0:02:00]} 24. Bxe6+ {[%emt 0:02:37]} Kh8 {[%emt 0:00:01]} 25. Rf1 {[%emt 0:07:27]} 0-1

[Event "European Womens-ch 2025"]
[Site "Rhodes"]
[Date "2025.04.02"]
[Round "3.37"]
[White "Wikar, Martyna"]
[Black "Rida, Ruqayyah"]
[Result "0-1"]
[Annotator "RC"]
[ECO "C77"]
[WhiteElo "2239"]
[BlackElo "2065"]
[PlyCount "80"]
[EventDate "2025.03.29"]
[EventType "swiss"]
[EventCountry "GRE"]
[SourceTitle "playchess.com"]
[Source "ChessBase"]
[SourceQuality "1"]
[TimeControl "40/5400+30:1800+30"]

1. e4 {[%emt 0:00:02]} e5 {[%emt 0:01:34]} 2. Nf3 {[%emt 0:00:17]} Nc6 {[%emt 0:00:19]} 3. Bb5 {[%emt 0:00:05]} a6 {[%emt 0:00:22]} 4. Ba4 {[%emt 0:00:09]} Nf6 {[%emt 0:00:21]} 5. Nc3 {[%emt 0:00:17]} b5 {[%emt 0:00:36]} 6. Bb3 {[%emt 0:00:08]} Bc5 {[%emt 0:00:37]} 7. Nd5 {[%emt 0:01:19]} d6 {[%emt 0:04:44]} 8. c3 {[%emt 0:00:33]} h6 {[%emt 0:03:10]} 9. d4 {[%emt 0:00:37]} Ba7 {[%emt 0:01:03]} 10. h3 {[%emt 0:11:27]} Bb7 {[%emt 0:13:09]} 11. O-O {[%emt 0:07:27]} O-O {[%emt 0:15:03]} 12. Re1 {[%emt 0:03:57]} Nxd5 {[%emt 0:08:35]} 13. Bxd5 {[%emt 0:16:48]} Qf6 {[%emt 0:04:44]} 14. Be3 {[%emt 0:01:37]} Rad8 {[%emt 0:04:39]} 15. a4 {[%emt 0:05:09]} Bb6 {[%emt 0:03:00]} 16. axb5 {[%emt 0:08:34]} axb5 {[%emt 0:00:26]} 17. dxe5 {[%emt 0:08:54]} dxe5 {[%emt 0:02:50]} 18. Bxb6 {[%emt 0:00:04]} cxb6 {[%emt 0:00:58]} 19. Qb3 {[%emt 0:00:11]} Bc8 {[%emt 0:03:48]} 20. Qxb5 {[%emt 0:32:55]} Ne7 {[%emt 0:06:48]} 21. Nxe5 {[%emt 0:00:00]} Kh7 {[%emt 0:04:23]} 22. Bc4 {[%emt 0:00:00]} Ng6 {[%emt 0:03:00]} 23. Nxg6 {[%emt 0:00:00]} fxg6 {[%emt 0:00:18]} 24. Re2 {[%emt 0:00:00]} Bd7 {[%emt 0:00:58]} 25. Qb3 {[%emt 0:00:00]} Rde8 {[%emt 0:08:57]} 26. Bd5 {[%emt 0:00:00]} Re5 {[%emt 0:00:34]} 27. c4 {[%emt 0:00:00]} g5 {[%emt 0:01:44]} 28. Ra7 {[%emt 0:01:41]} Bc8 {[%emt 0:00:53]} 29. Qg3 {[%emt 0:01:22]} h5 {[%emt 0:03:37]} 30. b4 {[%emt 0:01:17]} h4 {[%emt 0:01:58]} 31. Qe3 {[%emt 0:00:16]} g4 {[%emt 0:00:36]} 32. hxg4 {[%emt 0:00:37]} Bxg4 {[%emt 0:00:33]} 33. Rd2 {[%emt 0:00:37]} h3 {[%emt 0:00:25]} 34. Qg3 {[%emt 0:00:36]} Rg5 {[%emt 0:01:24]} 35. Qh4+ {[%emt 0:00:29]} Bh5 {[%emt 0:00:39]} 36. Qxh3 {[%emt 0:00:16]} Qf4 {[%emt 0:00:48]} 37. Raa2 {[%emt 0:00:45]} Rf6 {[%emt 0:00:37]} 38. Qh2 {[%emt 0:00:29]} Qxh2+ {[%emt 0:00:18]} 39. Kxh2 {[%emt 0:00:04]} Bf3 {[%emt 0:00:07]} 40. Be6 {[%emt 0:00:00]} Rxg2+ {[%emt 0:00:00]} 0-1